fUSD/lending_fUSD_20250103
["ID","MTS","AMOUNT","RATE_DAILY","PERIOD"]
[347535949,1735906105236,-500.0,8.985e-05,2]
[347535950,1735906105262,-500.0,8.985e-05,2]
[347535951,1735906105287,-500.0,8.985e-05,2]
[347535952,1735906105314,-500.0,8.985e-05,2]
[347535953,1735906105341,-500.0,8.985e-05,2]
[347535954,1735906105368,-500.0,8.985e-05,2]
[347535955,1735906105393,-500.0,8.985e-05,2]
[347535956,1735906105420,-500.0,8.985e-05,2]
[347535957,1735906105446,-500.0,8.985e-05,2]
[347535958,1735906105472,-500.0,8.985e-05,2]
[347535959,1735906105498,-500.0,8.985e-05,2]
[347535960,1735906105528,-500.0,8.985e-05,2]
[347535961,1735906105559,-500.0,8.985e-05,2]
[347535962,1735906105585,-500.0,8.985e-05,2]
[347535963,1735906105611,-500.0,8.985e-05,2]
[347535964,1735906105638,-500.0,8.985e-05,2]
[347535965,1735906105663,-500.0,8.985e-05,2]
[347535966,1735906105689,-500.0,8.985e-05,2]
[347535967,1735906105715,-500.0,8.985e-05,2]
[347535968,1735906105741,-500.0,8.985e-05,2]
[347535969,1735906105766,-649.27,8.985e-05,2]
[347535970,1735906105792,-132.79028148,8.985e-05,2]
[347535971,1735906106621,-1040.51,8.984e-05,2]
[347535972,1735906106651,-367.20971852,8.985e-05,2]
[347535973,1735906106678,-500.0,8.985e-05,2]
[347535974,1735906106705,-500.0,8.985e-05,2]
[347535975,1735906106732,-500.0,8.985e-05,2]
[347535976,1735906106759,-500.0,8.985e-05,2]
[347535977,1735906106787,-569.77,8.985e-05,2]
[347535978,1735906106813,-740.29,8.985e-05,2]
[347535979,1735906106838,-500.0,8.985e-05,2]
[347535980,1735906106864,-500.0,8.985e-05,2]
[347535981,1735906106896,-500.0,8.985e-05,2]
[347535982,1735906106925,-500.0,8.985e-05,2]
[347535983,1735906106952,-500.0,8.985e-05,2]
[347535984,1735906106979,-500.0,8.985e-05,2]
[347535985,1735906107007,-536.3,8.985e-05,2]
[347535986,1735906107034,-500.0,8.985e-05,2]
[347535987,1735906107060,-302.59119293,8.985e-05,2]
[347535988,1735906107086,-500.0,8.985e-05,2]
[347535989,1735906107112,-500.0,8.985e-05,2]
[347535990,1735906107139,-500.0,8.985e-05,2]
[347535991,1735906107165,-500.0,8.985e-05,2]
[347535992,1735906107192,-500.0,8.985e-05,2]
[347535993,1735906107218,-500.0,8.985e-05,2]
[347535994,1735906107245,-500.0,8.985e-05,2]
[347535995,1735906107271,-500.0,8.985e-05,2]
[347535996,1735906107296,-500.0,8.985e-05,2]
[347535997,1735906107324,-500.0,8.985e-05,2]
[347535998,1735906107349,-500.0,8.985e-05,2]
[347535999,1735906107376,-500.0,8.985e-05,2]
[347536000,1735906107401,-500.0,8.985e-05,2]
[347536001,1735906107427,-500.0,8.985e-05,2]
[347536002,1735906107453,-500.0,8.985e-05,2]
[347536003,1735906107485,-635.69398808,8.985e-05,2]
[347536004,1735906107512,-500.0,8.985e-05,2]
[347536005,1735906107542,-691.45,8.985e-05,2]
[347536006,1735906107568,-500.0,8.985e-05,2]
[347536007,1735906107596,-794.09,8.985e-05,2]
[347536008,1735906107626,-500.0,8.985e-05,2]
[347536009,1735906107655,-500.0,8.985e-05,2]
[347536010,1735906107681,-500.0,8.985e-05,2]
[347536011,1735906107711,-500.0,8.985e-05,2]
[347536012,1735906107739,-500.0,8.985e-05,2]
[347536013,1735906107765,-500.0,8.985e-05,2]
[347536014,1735906107792,-997.53,8.985e-05,2]
[347536015,1735906107818,-500.0,8.985e-05,2]
[347536016,1735906107843,-500.0,8.985e-05,2]
[347536017,1735906107870,-500.0,8.985e-05,2]
[347536018,1735906107897,-500.0,8.985e-05,2]
[347536019,1735906107923,-500.0,8.985e-05,2]
[347536020,1735906107952,-500.0,8.985e-05,2]
[347536021,1735906107978,-500.0,8.985e-05,2]
[347536022,1735906108004,-512.09,8.985e-05,2]
[347536023,1735906108030,-500.0,8.985e-05,2]
[347536024,1735906108056,-500.0,8.985e-05,2]
[347536025,1735906108082,-500.0,8.985e-05,2]
[347536026,1735906108109,-500.0,8.985e-05,2]
[347536027,1735906108135,-500.0,8.985e-05,2]
[347536028,1735906108160,-533.45236416,8.985e-05,2]
[347536029,1735906108186,-500.0,8.985e-05,2]
[347536030,1735906108211,-870.4,8.985e-05,2]
[347536031,1735906108237,-500.0,8.985e-05,2]
[347536032,1735906108262,-500.0,8.985e-05,2]
[347536033,1735906108286,-500.0,8.985e-05,2]
[347536034,1735906108311,-500.0,8.985e-05,2]
[347536035,1735906108336,-500.0,8.985e-05,2]
[347536036,1735906108360,-543.06,8.985e-05,2]
[347536037,1735906108384,-500.0,8.985e-05,2]
[347536038,1735906108410,-500.0,8.985e-05,2]
[347536039,1735906108435,-500.0,8.985e-05,2]
[347536040,1735906108459,-590.28,8.985e-05,2]
[347536041,1735906108485,-500.0,8.985e-05,2]
[347536042,1735906108509,-506.67293144,8.985e-05,2]
[347536043,1735906108534,-701.88,8.985e-05,2]
[347536044,1735906108563,-500.0,8.985e-05,2]
[347536045,1735906108587,-516.40983848,8.985e-05,2]
[347536046,1735906108612,-500.0,8.985e-05,2]
[347536047,1735906108638,-500.0,8.985e-05,2]
[347536048,1735906108662,-500.0,8.985e-05,2]
[347536049,1735906108687,-500.0,8.985e-05,2]
[347536050,1735906108712,-500.0,8.985e-05,2]
[347536051,1735906108737,-500.0,8.985e-05,2]
[347536052,1735906108762,-500.0,8.985e-05,2]
[347536053,1735906108787,-803.22,8.985e-05,2]
[347536054,1735906108811,-500.0,8.985e-05,2]
[347536055,1735906108835,-500.0,8.985e-05,2]
[347536056,1735906108859,-500.0,8.985e-05,2]
[347536057,1735906108883,-500.0,8.985e-05,2]
[347536058,1735906108907,-500.0,8.985e-05,2]
[347536059,1735906108932,-500.0,8.985e-05,2]
[347536060,1735906108962,-500.0,8.985e-05,2]
[347536061,1735906108988,-500.0,8.985e-05,2]
[347536062,1735906109012,-250.74574753,8.985e-05,2]
[347536063,1735906109037,-500.0,8.985e-05,2]
[347536064,1735906109306,-500.0,8.985e-05,2]
[347536065,1735906109331,-496.35421886,8.985e-05,2]
[347536066,1735906110576,-3.64578114,8.985e-05,2]
[347536067,1735906110600,-500.0,8.985e-05,2]
[347536068,1735906110625,-500.0,8.985e-05,2]
[347536069,1735906110650,-500.0,8.985e-05,2]
[347536070,1735906110676,-500.0,8.985e-05,2]
[347536071,1735906110701,-500.0,8.985e-05,2]
[347536072,1735906110726,-500.0,8.985e-05,2]
[347536073,1735906110750,-500.0,8.985e-05,2]
[347536074,1735906110773,-500.0,8.985e-05,2]
[347536075,1735906110797,-500.0,8.985e-05,2]
[347536076,1735906110826,-500.0,8.985e-05,2]
[347536077,1735906110854,-500.0,8.985e-05,2]
[347536078,1735906110878,-500.0,8.985e-05,2]
[347536079,1735906110901,-500.0,8.985e-05,2]
[347536080,1735906110926,-573.15,8.985e-05,2]
[347536081,1735906110950,-500.0,8.985e-05,2]
[347536082,1735906110974,-500.0,8.985e-05,2]
[347536083,1735906111001,-500.0,8.985e-05,2]
[347536084,1735906111026,-500.0,8.985e-05,2]
[347536085,1735906111050,-808.28,8.985e-05,2]
[347536086,1735906111075,-523.45,8.985e-05,2]
[347536087,1735906111099,-500.0,8.985e-05,2]
[347536088,1735906111124,-500.0,8.985e-05,2]
[347536089,1735906111148,-500.0,8.985e-05,2]
[347536090,1735906111172,-500.0,8.985e-05,2]
[347536091,1735906111197,-500.0,8.985e-05,2]
[347536092,1735906111221,-515.0,8.985e-05,2]
[347536093,1735906111246,-500.0,8.985e-05,2]
[347536094,1735906111270,-500.0,8.985e-05,2]
[347536095,1735906111294,-500.0,8.985e-05,2]
[347536096,1735906111318,-500.0,8.985e-05,2]
[347536097,1735906111342,-500.0,8.985e-05,2]
[347536098,1735906111366,-851.05,8.985e-05,2]
[347536099,1735906111391,-512.44,8.985e-05,2]
[347536100,1735906111415,-900.31,8.985e-05,2]
[347536101,1735906111440,-500.0,8.985e-05,2]
[347536102,1735906111464,-658.05,8.985e-05,2]
[347536103,1735906111490,-500.0,8.985e-05,2]
[347536104,1735906111515,-630.86,8.985e-05,2]
[347536105,1735906111541,-573.32,8.985e-05,2]
[347536106,1735906111566,-500.0,8.985e-05,2]
[347536107,1735906111591,-500.0,8.985e-05,2]
[347536108,1735906111617,-964.55,8.985e-05,2]
[347536109,1735906111641,-500.0,8.985e-05,2]
[347536110,1735906111669,-579.92,8.985e-05,2]
[347536111,1735906111694,-500.0,8.985e-05,2]
[347536112,1735906111718,-500.0,8.985e-05,2]
[347536113,1735906111743,-1024.72,8.985e-05,2]
[347536114,1735906111767,-669.33,8.985e-05,2]
[347536115,1735906111792,-500.0,8.985e-05,2]
[347536116,1735906112072,-843.49,8.985e-05,2]
[347536117,1735906112098,-500.0,8.985e-05,2]
[347536118,1735906112122,-500.0,8.985e-05,2]
[347536119,1735906112146,-913.28,8.985e-05,2]
[347536120,1735906112171,-1233.01,8.985e-05,2]
[347536121,1735906112194,-500.0,8.985e-05,2]
[347536122,1735906112219,-500.0,8.985e-05,2]
[347536123,1735906112244,-169.03809217,8.985e-05,2]
[347536124,1735906112269,-500.0,8.985e-05,2]
[347536125,1735906112295,-894.37,8.985e-05,2]
[347536126,1735906112320,-500.0,8.985e-05,2]
[347536127,1735906112344,-500.0,8.985e-05,2]
[347536128,1735906112369,-500.0,8.985e-05,2]
[347536129,1735906112394,-500.0,8.985e-05,2]
[347536130,1735906112419,-500.0,8.985e-05,2]
[347536131,1735906112445,-500.0,8.985e-05,2]
[347536132,1735906112469,-500.0,8.985e-05,2]
[347536133,1735906112496,-500.0,8.985e-05,2]
[347536134,1735906112520,-500.0,8.985e-05,2]
[347536135,1735906112547,-666.85,8.985e-05,2]
[347536136,1735906112573,-500.0,8.985e-05,2]
[347536137,1735906112599,-3068.73,8.985e-05,2]
[347536138,1735906112625,-585.62,8.985e-05,2]
[347536139,1735906112650,-732.93,8.985e-05,2]
[347536140,1735906112674,-500.0,8.985e-05,2]
[347536141,1735906112699,-784.47,8.985e-05,2]
[347536142,1735906112723,-500.0,8.985e-05,2]
[347536143,1735906112751,-500.0,8.985e-05,2]
[347536144,1735906112776,-500.0,8.985e-05,2]
[347536145,1735906112802,-500.0,8.985e-05,2]
[347536146,1735906112828,-2820.13612669,8.985e-05,2]
[347536147,1735906117528,-2556.41,8.983e-05,2]
[347536148,1735906117557,-500.0,8.984e-05,2]
[347536149,1735906117585,-500.0,8.984e-05,2]
[347536150,1735906117612,-500.0,8.984e-05,2]
[347536151,1735906117639,-500.0,8.984e-05,2]
[347536152,1735906117665,-39.78387331,8.985e-05,2]
[347536153,1735906117692,-500.0,8.985e-05,2]
[347536154,1735906117720,-647.33,8.985e-05,2]
[347536155,1735906117748,-500.0,8.985e-05,2]
[347536156,1735906117774,-512.24,8.985e-05,2]
[347536157,1735906117800,-1603.43,8.985e-05,2]
[347536158,1735906117826,-500.0,8.985e-05,2]
[347536159,1735906117856,-500.0,8.985e-05,2]
[347536160,1735906117882,-538.16,8.985e-05,2]
[347536161,1735906117907,-500.0,8.985e-05,2]
[347536162,1735906117933,-629.0,8.985e-05,2]
[347536163,1735906117958,-711.25,8.985e-05,2]
[347536164,1735906117984,-500.0,8.985e-05,2]
[347536165,1735906118011,-500.0,8.985e-05,2]
[347536166,1735906118037,-500.0,8.985e-05,2]
[347536167,1735906118063,-500.0,8.985e-05,2]
[347536168,1735906118088,-500.0,8.985e-05,2]
[347536169,1735906118113,-1036.6,8.985e-05,2]
[347536170,1735906118139,-500.0,8.985e-05,2]
[347536171,1735906118165,-500.0,8.985e-05,2]
[347536172,1735906118190,-500.0,8.985e-05,2]
[347536173,1735906118215,-612.17,8.985e-05,2]
[347536174,1735906118244,-500.0,8.985e-05,2]
[347536175,1735906118269,-500.0,8.985e-05,2]
[347536176,1735906118294,-867.42,8.985e-05,2]
[347536177,1735906118320,-500.0,8.985e-05,2]
[347536178,1735906118345,-500.0,8.985e-05,2]
[347536179,1735906118371,-500.0,8.985e-05,2]
[347536180,1735906118396,-500.0,8.985e-05,2]
[347536181,1735906118423,-500.0,8.985e-05,2]
[347536182,1735906118451,-500.0,8.985e-05,2]
[347536183,1735906118475,-500.0,8.985e-05,2]
[347536184,1735906118504,-500.0,8.985e-05,2]
[347536185,1735906118530,-667.71,8.985e-05,2]
[347536186,1735906118560,-500.0,8.985e-05,2]
[347536187,1735906118587,-500.0,8.985e-05,2]
[347536188,1735906118614,-639.82,8.985e-05,2]
[347536189,1735906118657,-500.0,8.985e-05,2]
[347536190,1735906118685,-500.0,8.985e-05,2]
[347536191,1735906118715,-500.0,8.985e-05,2]
[347536192,1735906118743,-500.0,8.985e-05,2]
[347536193,1735906118771,-1819.0,8.985e-05,2]
[347536194,1735906118800,-500.0,8.985e-05,2]
[347536195,1735906118827,-500.0,8.985e-05,2]
[347536196,1735906118855,-2204.27,8.985e-05,2]
[347536197,1735906118881,-500.0,8.985e-05,2]
[347536198,1735906118907,-500.0,8.985e-05,2]
[347536199,1735906118935,-500.0,8.985e-05,2]
[347536200,1735906118960,-635.54,8.985e-05,2]
[347536201,1735906118988,-500.0,8.985e-05,2]
[347536202,1735906119015,-500.0,8.985e-05,2]
[347536203,1735906119041,-500.0,8.985e-05,2]
[347536204,1735906119067,-500.0,8.985e-05,2]
[347536205,1735906119093,-627.95,8.985e-05,2]
[347536206,1735906119120,-1346.19,8.985e-05,2]
[347536207,1735906119146,-500.0,8.985e-05,2]
[347536208,1735906119172,-500.0,8.985e-05,2]
[347536209,1735906119199,-2415.51,8.985e-05,2]
[347536210,1735906119232,-500.0,8.985e-05,2]
[347536211,1735906119260,-772.32,8.985e-05,2]
[347536212,1735906119287,-500.0,8.985e-05,2]
[347536213,1735906119314,-500.0,8.985e-05,2]
[347536214,1735906119341,-500.0,8.985e-05,2]
[347536215,1735906119368,-500.0,8.985e-05,2]
[347536216,1735906119395,-559.83,8.985e-05,2]
[347536217,1735906119421,-500.0,8.985e-05,2]
[347536218,1735906119448,-500.0,8.985e-05,2]
[347536219,1735906119475,-1671.99,8.985e-05,2]
[347536220,1735906119503,-1386.07612669,8.985e-05,2]
[347536222,1735906203868,160.32162058,8.985e-05,30]
[347536223,1735906203910,156.0,8.985e-05,30]
[347536227,1735906231825,-949.83135,8.654e-05,2]
[347536228,1735906231838,-550.16865,8.654e-05,2]
[347536229,1735906231848,-300.0,8.936e-05,2]
[347536230,1735906231857,-5054.81810948,8.937e-05,2]
[347536231,1735906231870,-25847.62949552,8.937e-05,2]
[347536232,1735906231879,-4144.53,8.983e-05,2]
[347536233,1735906231888,-2030.96,8.983e-05,2]
[347536234,1735906231898,-3558.71,8.983e-05,2]
[347536235,1735906231908,-500.0,8.983e-05,2]
[347536236,1735906231917,-5653.45,8.983e-05,2]
[347536237,1735906231926,-500.0,8.983e-05,2]
[347536238,1735906231936,-1664.19,8.983e-05,2]
[347536239,1735906231945,-500.0,8.983e-05,2]
[347536240,1735906231954,-971.32,8.983e-05,2]
[347536241,1735906231963,-500.0,8.983e-05,2]
[347536242,1735906231972,-1341.74,8.984e-05,2]
[347536243,1735906231981,-500.0,8.984e-05,2]
[347536244,1735906231989,-3807.83,8.984e-05,2]
[347536245,1735906231999,-1636.26,8.984e-05,2]
[347536246,1735906232008,-500.0,8.984e-05,2]
[347536247,1735906232017,-924.36,8.984e-05,2]
[347536248,1735906232027,-4461.43,8.984e-05,2]
[347536249,1735906232036,-500.0,8.984e-05,2]
[347536250,1735906232044,-520.69,8.984e-05,2]
[347536251,1735906232053,-1318.33,8.984e-05,2]
[347536252,1735906232062,-546.03,8.984e-05,2]
[347536253,1735906232071,-500.0,8.984e-05,2]
[347536254,1735906232081,-500.0,8.984e-05,2]
[347536255,1735906232092,-654.66,8.984e-05,2]
[347536256,1735906232103,-1698.2,8.984e-05,2]
[347536257,1735906232111,-982.03,8.984e-05,2]
[347536258,1735906232120,-993.41,8.984e-05,2]
[347536259,1735906232130,-500.0,8.984e-05,2]
[347536260,1735906232139,-500.0,8.984e-05,2]
[347536261,1735906232149,-500.0,8.984e-05,2]
[347536262,1735906232159,-500.0,8.984e-05,2]
[347536263,1735906232168,-943.31,8.984e-05,2]
[347536264,1735906232177,-500.0,8.984e-05,2]
[347536265,1735906232186,-662.64,8.984e-05,2]
[347536266,1735906232195,-808.34,8.984e-05,2]
[347536267,1735906232205,-543.44,8.984e-05,2]
[347536268,1735906232214,-500.0,8.984e-05,2]
[347536269,1735906232224,-7511.89,8.984e-05,2]
[347536270,1735906232233,-482.79952404,8.984e-05,2]
[347536271,1735906232242,-742.14,8.984e-05,2]
[347536272,1735906232251,-888.13,8.984e-05,2]
[347536273,1735906232262,-1481.86,8.984e-05,2]
[347536274,1735906232271,-500.0,8.984e-05,2]
[347536275,1735906232281,-500.0,8.984e-05,2]
[347536276,1735906232291,-500.0,8.984e-05,2]
[347536277,1735906232301,-500.0,8.984e-05,2]
[347536278,1735906232310,-500.0,8.984e-05,2]
[347536279,1735906232319,-920.67,8.984e-05,2]
[347536280,1735906232327,-500.0,8.984e-05,2]
[347536281,1735906232337,-500.0,8.984e-05,2]
[347536282,1735906232346,-2661.22,8.984e-05,2]
[347536283,1735906232356,-500.0,8.984e-05,2]
[347536284,1735906232365,-513.96,8.984e-05,2]
[347536285,1735906232374,-857.11,8.984e-05,2]
[347536286,1735906232384,-500.0,8.984e-05,2]
[347536287,1735906232394,-500.0,8.984e-05,2]
[347536288,1735906232403,-1042.31,8.984e-05,2]
[347536289,1735906232413,-1036.96,8.984e-05,2]
[347536290,1735906232422,-633.14,8.984e-05,2]
[347536291,1735906232431,-866.17,8.984e-05,2]
[347536292,1735906232440,-7039.86,8.984e-05,2]
[347536293,1735906232450,-639.06,8.984e-05,2]
[347536294,1735906232459,-500.0,8.984e-05,2]
[347536295,1735906232468,-500.0,8.984e-05,2]
[347536296,1735906232477,-500.0,8.984e-05,2]
[347536297,1735906232776,-2207.36,8.984e-05,2]
[347536298,1735906232791,-2390.8,8.984e-05,2]
[347536299,1735906232800,-500.0,8.984e-05,2]
[347536300,1735906232810,-500.0,8.984e-05,2]
[347536301,1735906232819,-500.0,8.984e-05,2]
[347536302,1735906232829,-223.81,8.984e-05,2]
[347536303,1735906232839,-166.15,8.984e-05,2]
[347536304,1735906232848,-751.78,8.984e-05,2]
[347536305,1735906232857,-838.14,8.984e-05,2]
[347536306,1735906232867,-500.0,8.984e-05,2]
[347536307,1735906232876,-620.36,8.984e-05,2]
[347536308,1735906232885,-524.73980513,8.984e-05,2]
[347536309,1735906232895,-855.7,8.984e-05,2]
[347536310,1735906232905,-1617.70387331,8.985e-05,2]
[347536311,1735906232914,-500.0,8.985e-05,2]
[347536312,1735906232923,-500.0,8.985e-05,2]
[347536313,1735906232933,-500.0,8.985e-05,2]
[347536314,1735906232943,-845.02,8.985e-05,2]
[347536315,1735906232953,-540.74,8.985e-05,2]
[347536316,1735906232962,-500.0,8.985e-05,2]
[347536317,1735906232971,-500.0,8.985e-05,2]
[347536318,1735906232981,-500.0,8.985e-05,2]
[347536319,1735906232991,-1746.28,8.985e-05,2]
[347536320,1735906233000,-500.0,8.985e-05,2]
[347536321,1735906233009,-784.34,8.985e-05,2]
[347536322,1735906233019,-500.0,8.985e-05,2]
[347536323,1735906233029,-500.0,8.985e-05,2]
[347536324,1735906233038,-598.48,8.985e-05,2]
[347536325,1735906233048,-500.0,8.985e-05,2]
[347536326,1735906233058,-562.57,8.985e-05,2]
[347536327,1735906233068,-500.0,8.985e-05,2]
[347536328,1735906233078,-1265.64,8.985e-05,2]
[347536329,1735906233090,-2200.82619968,8.985e-05,2]
[347536330,1735906233104,-1935.41380032,8.985e-05,2]
[347536331,1735906233113,-2567.04,8.985e-05,2]
[347536332,1735906233123,-500.0,8.985e-05,2]
[347536333,1735906233133,-521.76,8.985e-05,2]
[347536334,1735906233143,-500.0,8.985e-05,2]
[347536335,1735906233153,-500.0,8.985e-05,2]
[347536336,1735906233162,-500.0,8.985e-05,2]
[347536337,1735906233172,-1929.53,8.985e-05,2]
[347536338,1735906233181,-8283.98,8.985e-05,2]
[347536339,1735906233191,-600.64,8.985e-05,2]
[347536340,1735906233200,-577.52,8.985e-05,2]
[347536341,1735906233210,-500.0,8.985e-05,2]
[347536342,1735906233219,-2610.99,8.985e-05,2]
[347536343,1735906233229,-740.24,8.985e-05,2]
[347536344,1735906233239,-771.39,8.985e-05,2]
[347536345,1735906233248,-500.0,8.985e-05,2]
[347536346,1735906233258,-7146.08,8.985e-05,2]
[347536347,1735906233268,-500.0,8.985e-05,2]
[347536348,1735906233277,-500.0,8.985e-05,2]
[347536349,1735906233287,-150.0,8.985e-05,2]
[347536350,1735906233296,-500.0,8.985e-05,2]
[347536351,1735906233306,-996.53,8.985e-05,2]
[347536352,1735906233316,-1546.36,8.985e-05,2]
[347536353,1735906233326,-500.0,8.985e-05,2]
[347536354,1735906233337,-500.0,8.985e-05,2]
[347536355,1735906233348,-500.0,8.985e-05,2]
[347536356,1735906233359,-853.93,8.985e-05,2]
[347536357,1735906233369,-600.72,8.985e-05,2]
[347536358,1735906233378,-751.08,8.985e-05,2]
[347536359,1735906233388,-511.48,8.985e-05,2]
[347536360,1735906233397,-1119.22,8.985e-05,2]
[347536361,1735906233407,-2236.09560735,8.985e-05,2]
[347536362,1735906233419,-1376.59439265,8.985e-05,2]
[347536363,1735906233429,-500.0,8.985e-05,2]
[347536364,1735906233439,-3603.8,8.985e-05,2]
[347536365,1735906233448,-500.0,8.985e-05,2]
[347536366,1735906233458,-872.97,8.985e-05,2]
[347536367,1735906233467,-500.0,8.986e-05,2]
[347536368,1735906233478,-513.01,8.986e-05,2]
[347536369,1735906233488,-500.0,8.986e-05,2]
[347536370,1735906233498,-500.0,8.986e-05,2]
[347536371,1735906233508,-768.8,8.986e-05,2]
[347536372,1735906233517,-500.0,8.986e-05,2]
[347536373,1735906233527,-575.86,8.986e-05,2]
[347536374,1735906233536,-526.36,8.986e-05,2]
[347536375,1735906233547,-500.0,8.986e-05,2]
[347536376,1735906233557,-1032.23,8.986e-05,2]
[347536377,1735906233567,-500.0,8.986e-05,2]
[347536378,1735906233583,-500.0,8.986e-05,2]
[347536379,1735906233592,-500.0,8.986e-05,2]
[347536380,1735906233602,-500.0,8.986e-05,2]
[347536381,1735906233612,-500.0,8.986e-05,2]
[347536382,1735906233623,-500.0,8.986e-05,2]
[347536383,1735906233632,-1910.8,8.986e-05,2]
[347536384,1735906233642,-1833.57,8.986e-05,2]
[347536385,1735906233652,-1039.05,8.986e-05,2]
[347536386,1735906233662,-5176.67,8.986e-05,2]
[347536387,1735906233671,-3975.9,8.986e-05,2]
[347536388,1735906233681,-3583.53,8.986e-05,2]
[347536389,1735906233692,-7386.36,8.986e-05,2]
[347536390,1735906233705,-286.675,9.115e-05,2]
[347536391,1735906233715,-2556.41,9.257e-05,2]
[347536392,1735906233725,-3953.31068774,9.257e-05,2]
[347536393,1735906233742,-191.21931226,9.257e-05,2]
[347536394,1735906233751,-241.46468774,9.257e-05,2]
[347536395,1735906233763,-304.71135965,9.257e-05,2]
[347536396,1735906233774,-294.74908546,9.257e-05,2]
[347536397,1735906233786,-1190.03486715,9.257e-05,2]
[347536398,1735906233796,-3558.71,9.257e-05,2]
[347536399,1735906233806,-500.0,9.257e-05,2]
[347536400,1735906233815,-5653.45,9.257e-05,2]
[347536401,1735906233825,-500.0,9.257e-05,2]
[347536402,1735906233836,-1664.19,9.257e-05,2]
[347536403,1735906233845,-500.0,9.257e-05,2]
[347536404,1735906233856,-268.49161183,9.257e-05,2]
[347536405,1735906233959,-231.50838817,9.257e-05,2]
[347536406,1735906233969,-971.32,9.257e-05,2]
[347536407,1735906233979,-1017.22,9.257e-05,2]
[347536408,1735906233989,-500.0,9.257e-05,2]
[347536409,1735906233998,-500.0,9.258e-05,2]
[347536410,1735906234008,-847.17,9.258e-05,2]
[347536411,1735906234017,-1377.3,9.258e-05,2]
[347536412,1735906234026,-2248.83,9.258e-05,2]
[347536413,1735906234036,-2409.42,9.258e-05,2]
[347536414,1735906234046,-1916.68,9.258e-05,2]
[347536415,1735906234056,-2312.05,9.258e-05,2]
[347536416,1735906234065,-7611.33,9.258e-05,2]
[347536417,1735906234075,-815.22,9.258e-05,2]
[347536418,1735906234084,-500.0,9.258e-05,2]
[347536419,1735906234094,-3270.46,9.258e-05,2]
[347536420,1735906234104,-1563.17,9.258e-05,2]
[347536421,1735906234114,-655.6,9.258e-05,2]
[347536422,1735906234124,-500.0,9.258e-05,2]
[347536423,1735906234133,-500.0,9.258e-05,2]
[347536424,1735906234143,-325.82439379,9.258e-05,2]
[347536425,1735906234155,-693.66560621,9.258e-05,2]
[347536426,1735906234165,-500.0,9.258e-05,2]
[347536427,1735906234175,-1009.7,9.258e-05,2]
[347536428,1735906234185,-500.0,9.258e-05,2]
[347536429,1735906234195,-1299.53,9.258e-05,2]
[347536430,1735906234205,-500.0,9.258e-05,2]
[347536431,1735906234215,-368.75772146,9.258e-05,2]
[347536432,1735906234227,-4200.98227854,9.258e-05,2]
[347536434,1735906234236,-167.10948141,9.258e-05,2]
[347536436,1735906234246,-500.0,9.258e-05,2]
[347536438,1735906234256,-500.0,9.258e-05,2]
[347536439,1735906234265,-609.18,9.258e-05,2]
[347536442,1735906234274,-561.5240863,9.258e-05,2]
[347536443,1735906234284,-316.26396348,9.258e-05,2]
[347536463,1735906237682,-295.43187569,8.984e-05,2]
[347536464,1735906237694,-639.35812431,8.984e-05,2]
[347536465,1735906237704,-846.24,8.985e-05,2]
[347536466,1735906237714,-500.0,8.985e-05,2]
[347536470,1735906238013,-183.73603652,9.258e-05,2]
[347536471,1735906238023,-829.05,9.258e-05,2]
[347536472,1735906238033,-500.0,9.258e-05,2]
[347536473,1735906238042,-500.0,9.258e-05,2]
[347536474,1735906238052,-35.41583919,9.258e-05,2]
[347536475,1735906238073,-427.5662391,8.984e-05,2]
[347536476,1735906238097,-427.7836077,8.984e-05,2]
[347536477,1735906238109,-681.2701532,8.984e-05,2]
[347536478,1735906238119,-1155.28416081,9.258e-05,2]
[347536479,1735906238129,-891.56,9.258e-05,2]